[Event "10th Iberoamericano-ch 2024"]
[Site "Linares"]
[Date "2024.09.27"]
[Round "5.9"]
[White "Jimenez Garcia, Emmanuel"]
[Black "Fernandez Guillen, Ernesto J."]
[Result "1/2-1/2"]
[ECO "A46"]
[WhiteElo "2352"]
[BlackElo "2463"]
[Annotator "ChessBase"]
[PlyCount "103"]
[EventDate "2024.09.25"]
[EventType "swiss"]
[EventCountry "ESP"]
[SourceTitle "playchess.com"]
[Source "ChessBase"]
[SourceQuality "1"]
[TimeControl "5400+30"]

1. d4 {[%emt 0:00:12]} Nf6 {[%emt 0:08:59]} 2. Nf3 {[%emt 0:00:06]} e6 {[%emt 0:05:56]} 3. Bg5 {[%emt 0:01:20]} Be7 {[%emt 0:00:58]} 4. Nbd2 {[%emt 0:00:25]} b6 {[%emt 0:03:58]} 5. e4 {[%emt 0:06:26]} h6 {[%emt 0:06:31]} 6. Be3 {[%emt 0:15:08]} Bb7 {[%emt 0:03:25]} 7. Bd3 {[%emt 0:01:27]} d6 {[%emt 0:05:56]} 8. c4 {[%emt 0:02:45]} Nbd7 {[%emt 0:09:04]} 9. h3 {[%emt 0:01:18]} c5 {[%emt 0:05:23]} 10. d5 {[%emt 0:01:09]} exd5 {[%emt 0:00:08]} 11. cxd5 {[%emt 0:01:08]} O-O {[%emt 0:00:33]} 12. O-O {[%emt 0:03:37]} Re8 {[%emt 0:01:51]} 13. a4 {[%emt 0:02:48]} a6 {[%emt 0:04:07]} 14. Re1 {[%emt 0:07:07]} Bf8 {[%emt 0:03:35]} 15. Qb1 {[%emt 0:00:35]} Ne5 {[%emt 0:14:23]} 16. Nxe5 {[%emt 0:02:11]} dxe5 {[%emt 0:00:37]} 17. Rc1 {[%emt 0:03:07]} Nd7 {[%emt 0:01:13]} 18. Be2 {[%emt 0:02:00]} f5 {[%emt 0:15:15]} 19. exf5 {[%emt 0:00:21]} Nf6 {[%emt 0:00:32]} 20. Ne4 {[%emt 0:04:26]} Bxd5 {[%emt 0:01:03]} 21. Bf3 {[%emt 0:01:53]} Bxe4 {[%emt 0:03:50]} 22. Bxe4 {[%emt 0:00:02]} Nxe4 {[%emt 0:00:09]} 23. Qxe4 {[%emt 0:00:03]} Ra7 {[%emt 0:00:44]} 24. Rd1 {[%emt 0:03:47]} Qf6 {[%emt 0:00:54]} 25. g4 {[%emt 0:01:03]} Rf7 {[%emt 0:00:20]} 26. Rd5 {[%emt 0:04:53]} Qc6 {[%emt 0:01:10]} 27. Qc4 {[%emt 0:06:58]} b5 {[%emt 0:01:01]} 28. axb5 {[%emt 0:00:03]} axb5 {[%emt 0:00:05]} 29. Qb3 {[%emt 0:00:03]} Rb8 {[%emt 0:00:56]} 30. Rxe5 {[%emt 0:04:14]} Qf3 {[%emt 0:01:20]} 31. Qd5 {[%emt 0:00:37]} Qxh3 {[%emt 0:00:22]} 32. Re4 {[%emt 0:00:08]} Qf3 {[%emt 0:00:58]} 33. Bxc5 {[%emt 0:06:54]} Rd8 {[%emt 0:00:35]} 34. Qxd8 {[%emt 0:00:27]} Qxe4 {[%emt 0:00:04]} 35. Qd4 {[%emt 0:00:12]} Qxd4 {[%emt 0:01:02]} 36. Bxd4 {[%emt 0:00:03]} Rd7 {[%emt 0:00:31]} 37. Be3 {[%emt 0:01:39]} Be7 {[%emt 0:00:32]} 38. Ra5 {[%emt 0:04:39]} b4 {[%emt 0:00:17]} 39. f4 {[%emt 0:02:40]} Rd1+ {[%emt 0:00:48]} 40. Kf2 {[%emt 0:00:20]} Rb1 {[%emt 0:00:17]} 41. Kf3 {[%emt 0:02:37]} Rxb2 {[%emt 0:00:28]} 42. g5 {[%emt 0:00:16]} hxg5 {[%emt 0:00:40]} 43. fxg5 {[%emt 0:00:02]} Rb3 {[%emt 0:00:38]} 44. Ra8+ {[%emt 0:01:41]} Kf7 {[%emt 0:00:05]} 45. Ke4 {[%emt 0:06:05]} Rxe3+ {[%emt 0:00:58]} 46. Kxe3 {[%emt 0:00:02]} Bxg5+ {[%emt 0:00:11]} 47. Ke4 {[%emt 0:00:01]} Bd2 {[%emt 0:00:32]} 48. Rb8 {[%emt 0:00:53]} Bc3 {[%emt 0:00:05]} 49. Rb6 {[%emt 0:00:10]} Be1 {[%emt 0:00:43]} 50. Kd3 {[%emt 0:00:14]} Bc3 {[%emt 0:00:06]} 51. Ke3 {[%emt 0:00:28]} Be1 {[%emt 0:00:26]} 52. Ke4 {[%emt 0:01:52]} 1/2-1/2

[Event "10th Iberoamericano-ch 2024"]
[Site "Linares"]
[Date "2024.09.27"]
[Round "5.10"]
[White "Flores Quillas, Diego Saul Rodri"]
[Black "Garcia Fernandez, Victor"]
[Result "1-0"]
[ECO "B30"]
[WhiteElo "2451"]
[BlackElo "2353"]
[Annotator "ChessBase"]
[PlyCount "47"]
[EventDate "2024.09.25"]
[EventType "swiss"]
[EventCountry "ESP"]
[SourceTitle "playchess.com"]
[Source "ChessBase"]
[SourceQuality "1"]
[TimeControl "5400+30"]

1. e4 {[%emt 0:12:14]} c5 {[%emt 0:00:07]} 2. Nf3 {[%emt 0:00:05]} Nc6 {[%emt 0:00:11]} 3. Bb5 {[%emt 0:00:05]} e6 {[%emt 0:00:18]} 4. O-O {[%emt 0:00:06]} Nge7 {[%emt 0:00:11]} 5. d4 {[%emt 0:00:05]} cxd4 {[%emt 0:05:20]} 6. Nxd4 {[%emt 0:00:06]} Qb6 {[%emt 0:17:05]} 7. Nxc6 {[%emt 0:00:22]} Nxc6 {[%emt 0:08:54]} 8. Nc3 {[%emt 0:11:04]} a6 {[%emt 0:05:06]} 9. Be3 {[%emt 0:00:12]} Qc7 {[%emt 0:00:58]} 10. Bd3 {[%emt 0:00:11]} Be7 {[%emt 0:01:44]} 11. f4 {[%emt 0:00:17]} O-O {[%emt 0:05:51]} 12. Qh5 {[%emt 0:00:45]} Nb4 {[%emt 0:01:09]} 13. Rf3 {[%emt 0:01:43]} b6 {[%emt 0:22:14]} 14. Rh3 {[%emt 0:02:46]} h6 {[%emt 0:00:06]} 15. Rg3 {[%emt 0:02:18]} Kh7 {[%emt 0:01:45]} 16. Bd4 {[%emt 0:03:30]} e5 {[%emt 0:13:35]} 17. Bxe5 {[%emt 0:02:24]} Qc5+ {[%emt 0:00:07]} 18. Kh1 {[%emt 0:00:02]} Bf6 {[%emt 0:00:25]} 19. Qf5+ {[%emt 0:00:16]} Kh8 {[%emt 0:00:22]} 20. Bxf6 {[%emt 0:00:24]} Qxf5 {[%emt 0:00:26]} 21. Bxg7+ {[%emt 0:00:06]} Kh7 {[%emt 0:00:18]} 22. exf5 {[%emt 0:00:07]} Rg8 {[%emt 0:00:14]} 23. f6+ {[%emt 0:01:49]} Nxd3 {[%emt 0:00:05]} 24. Rxd3 {[%emt 0:00:30]} 1-0

[Event "10th Iberoamericano-ch 2024"]
[Site "Linares"]
[Date "2024.09.27"]
[Round "5.11"]
[White "Leyva, Hector"]
[Black "Lopez Martinez, Josep Manuel"]
[Result "0-1"]
[ECO "D37"]
[WhiteElo "2296"]
[BlackElo "2448"]
[Annotator "RC"]
[PlyCount "150"]
[EventDate "2024.09.25"]
[EventType "swiss"]
[EventCountry "ESP"]
[SourceTitle "playchess.com"]
[Source "ChessBase"]
[SourceQuality "1"]
[TimeControl "5400+30"]

1. d4 {[%emt 0:00:30]} Nf6 {[%emt 0:03:48]} 2. Nf3 {[%emt 0:00:04]} d5 {[%emt 0:01:23]} 3. c4 {[%emt 0:00:23]} e6 {[%emt 0:00:11]} 4. Nc3 {[%emt 0:00:34]} Nbd7 {[%emt 0:01:03]} 5. Bg5 {[%emt 0:00:19]} h6 {[%emt 0:01:12]} 6. Bh4 {[%emt 0:00:10]} c6 {[%emt 0:00:54]} 7. e3 {[%emt 0:00:14]} Be7 {[%emt 0:00:07]} 8. Qc2 {[%emt 0:00:14]} O-O {[%emt 0:01:29]} 9. a3 {[%emt 0:00:16]} b6 {[%emt 0:01:22]} 10. cxd5 {[%emt 0:05:09]} cxd5 {[%emt 0:02:00]} 11. Bd3 {[%emt 0:18:37]} Bb7 {[%emt 0:00:38]} 12. O-O {[%emt 0:00:08]} a6 {[%emt 0:03:41]} 13. a4 {[%emt 0:02:20]} Bd6 {[%emt 0:05:39]} 14. e4 {[%emt 0:08:07]} dxe4 {[%emt 0:00:11]} 15. Bxe4 {[%emt 0:00:27]} Qb8 {[%emt 0:01:32]} 16. Bxb7 {[%emt 0:00:39]} Qxb7 {[%emt 0:00:07]} 17. Qb3 {[%emt 0:03:17]} Rac8 {[%emt 0:02:22]} 18. Rad1 {[%emt 0:01:22]} Nd5 {[%emt 0:01:25]} 19. Ne4 {[%emt 0:04:50]} Bb8 {[%emt 0:01:05]} 20. Bg3 {[%emt 0:00:50]} Bxg3 {[%emt 0:01:37]} 21. hxg3 {[%emt 0:03:16]} Qc6 {[%emt 0:00:41]} 22. Qa3 {[%emt 0:14:01]} b5 {[%emt 0:20:51]} 23. axb5 {[%emt 0:07:33]} axb5 {[%emt 0:00:20]} 24. Ne5 {[%emt 0:03:12]} Nxe5 {[%emt 0:00:19]} 25. dxe5 {[%emt 0:00:02]} Qc2 {[%emt 0:01:12]} 26. Nd2 {[%emt 0:17:40]} Rfd8 {[%emt 0:02:51]} 27. Nf3 {[%emt 0:03:13]} b4 {[%emt 0:05:26]} 28. Qa1 {[%emt 0:00:17]} Ra8 {[%emt 0:02:37]} 29. Qc1 {[%emt 0:00:47]} Qa4 {[%emt 0:00:45]} 30. Rd4 {[%emt 0:01:00]} Rdc8 {[%emt 0:00:14]} 31. Rc4 {[%emt 0:01:13]} Nb6 {[%emt 0:01:26]} 32. Rc7 {[%emt 0:02:43]} Qb3 {[%emt 0:02:06]} 33. Rxc8+ {[%emt 0:00:27]} Rxc8 {[%emt 0:00:27]} 34. Qd2 {[%emt 0:00:18]} Nd5 {[%emt 0:08:15]} 35. Rc1 {[%emt 0:01:33]} Rxc1+ {[%emt 0:02:17]} 36. Qxc1 {[%emt 0:00:01]} Qd3 {[%emt 0:00:48]} 37. Ne1 {[%emt 0:00:27]} Qd4 {[%emt 0:00:25]} 38. Qc8+ {[%emt 0:01:13]} Kh7 {[%emt 0:00:08]} 39. Qc2+ {[%emt 0:00:02]} g6 {[%emt 0:00:19]} 40. Nf3 {[%emt 0:00:09]} Qa7 {[%emt 0:00:11]} 41. Kh2 {[%emt 0:01:43]} Kg7 {[%emt 0:00:34]} 42. Qd2 {[%emt 0:00:40]} Qc7 {[%emt 0:00:28]} 43. Qd3 {[%emt 0:00:41]} g5 {[%emt 0:01:02]} 44. Qd4 {[%emt 0:00:27]} Qc2 {[%emt 0:00:47]} 45. Nd2 {[%emt 0:00:35]} Qd1 {[%emt 0:01:32]} 46. Nf3 {[%emt 0:00:35]} Qe2 {[%emt 0:01:55]} 47. Qd2 {[%emt 0:00:27]} Qe4 {[%emt 0:00:28]} 48. Qd4 {[%emt 0:00:17]} Qc2 {[%emt 0:02:39]} 49. Ne1 {[%emt 0:00:23]} Qe2 {[%emt 0:01:30]} 50. Nf3 {[%emt 0:00:23]} Kg6 {[%emt 0:01:19]} 51. g4 {[%emt 0:01:17]} Kg7 {[%emt 0:01:28]} 52. Qd2 {[%emt 0:00:21]} Qc4 {[%emt 0:00:54]} 53. Nxg5 {[%emt 0:00:19]} Qxg4 {[%emt 0:00:10]} 54. Nh3 {[%emt 0:00:46]} Qe4 {[%emt 0:00:59]} 55. f4 {[%emt 0:00:40]} Ne3 {[%emt 0:00:46]} 56. Qe2 {[%emt 0:00:37]} h5 {[%emt 0:00:42]} 57. Kg1 {[%emt 0:00:32]} b3 {[%emt 0:00:58]} 58. f5 {[%emt 0:00:34]} Qb1+ {[%emt 0:00:18]} 59. Kf2 {[%emt 0:00:16]} Ng4+ {[%emt 0:00:16]} 60. Kg3 {[%emt 0:00:26]} Qxf5 {[%emt 0:00:04]} 61. Nf4 {[%emt 0:00:40]} Kh6 {[%emt 0:01:49]} 62. Nd3 {[%emt 0:00:27]} Qg5 {[%emt 0:01:28]} 63. Kh3 {[%emt 0:00:25]} Ne3 {[%emt 0:02:14]} 64. Qf3 {[%emt 0:00:27]} Kg7 {[%emt 0:01:00]} 65. Kh2 {[%emt 0:00:37]} Ng4+ {[%emt 0:00:45]} 66. Kh3 {[%emt 0:00:31]} Qd2 {[%emt 0:04:58]} 67. Nf4 {[%emt 0:00:40]} Nxe5 {[%emt 0:03:26]} 68. Nxh5+ {[%emt 0:00:22]} Kh6 {[%emt 0:00:23]} 69. Qf4+ {[%emt 0:00:30]} Qxf4 {[%emt 0:00:18]} 70. Nxf4 {[%emt 0:00:00]} Nc4 {[%emt 0:00:25]} 71. Nd3 {[%emt 0:00:20]} Kg5 {[%emt 0:00:09]} 72. g4 {[%emt 0:00:50]} Ne3 {[%emt 0:00:26]} 73. Nc1 {[%emt 0:00:40]} Nxg4 {[%emt 0:00:07]} 74. Nxb3 {[%emt 0:00:01]} Nf2+ {[%emt 0:00:06]} 75. Kg3 {[%emt 0:01:09]} Nd3 {[%emt 0:00:08]} 0-1

[Event "10th Iberoamericano-ch 2024"]
[Site "Linares"]
[Date "2024.09.27"]
[Round "5.12"]
[White "Palma Villanueva, Miguel Tadeo"]
[Black "Oro, Faustino"]
[Result "1/2-1/2"]
[ECO "C63"]
[WhiteElo "2266"]
[BlackElo "2434"]
[Annotator "ChessBase"]
[PlyCount "51"]
[EventDate "2024.09.25"]
[EventType "swiss"]
[EventCountry "ESP"]
[SourceTitle "playchess.com"]
[Source "ChessBase"]
[SourceQuality "1"]
[TimeControl "5400+30"]

1. e4 {[%emt 0:00:30]} e5 {[%emt 0:00:10]} 2. Nf3 {[%emt 0:00:06]} Nc6 {[%emt 0:00:03]} 3. Bb5 {[%emt 0:00:05]} f5 {[%emt 0:00:05]} 4. d3 {[%emt 0:00:11]} fxe4 {[%emt 0:00:06]} 5. dxe4 {[%emt 0:00:04]} Nf6 {[%emt 0:00:06]} 6. O-O {[%emt 0:00:08]} Bc5 {[%emt 0:00:20]} 7. Bxc6 {[%emt 0:00:26]} bxc6 {[%emt 0:00:07]} 8. Nxe5 {[%emt 0:00:04]} O-O {[%emt 0:00:15]} 9. Nc3 {[%emt 0:00:03]} d6 {[%emt 0:00:15]} 10. Nd3 {[%emt 0:00:03]} Bg4 {[%emt 0:01:16]} 11. Qe1 {[%emt 0:03:00]} Bd4 {[%emt 0:03:54]} 12. Be3 {[%emt 0:07:15]} c5 {[%emt 0:09:08]} 13. f3 {[%emt 0:09:31]} Bd7 {[%emt 0:07:21]} 14. b4 {[%emt 0:10:44]} Ng4 {[%emt 0:09:17]} 15. Bxd4 {[%emt 0:04:19]} cxd4 {[%emt 0:00:16]} 16. fxg4 {[%emt 0:07:05]} Rxf1+ {[%emt 0:00:29]} 17. Kxf1 {[%emt 0:00:32]} Qf6+ {[%emt 0:00:56]} 18. Qf2 {[%emt 0:06:16]} dxc3 {[%emt 0:00:53]} 19. Qxf6 {[%emt 0:00:41]} gxf6 {[%emt 0:00:01]} 20. h3 {[%emt 0:20:55]} Bc6 {[%emt 0:12:51]} 21. a4 {[%emt 0:02:18]} Bxe4 {[%emt 0:07:17]} 22. Ra3 {[%emt 0:00:18]} Rb8 {[%emt 0:01:05]} 23. b5 {[%emt 0:05:48]} c6 {[%emt 0:04:02]} 24. Rxc3 {[%emt 0:00:05]} cxb5 {[%emt 0:00:12]} 25. axb5 {[%emt 0:00:05]} Rxb5 {[%emt 0:00:37]} 26. Rc8+ {[%emt 0:00:24]} 1/2-1/2

[Event "10th Iberoamericano-ch 2024"]
[Site "Linares"]
[Date "2024.09.27"]
[Round "5.13"]
[White "Merario Alarcon, Andres"]
[Black "Santos Flores, Alberto"]
[Result "0-1"]
[ECO "B23"]
[WhiteElo "2408"]
[BlackElo "2168"]
[Annotator "ChessBase"]
[PlyCount "102"]
[EventDate "2024.09.25"]
[EventType "swiss"]
[EventCountry "ESP"]
[SourceTitle "playchess.com"]
[Source "ChessBase"]
[SourceQuality "1"]
[TimeControl "5400+30"]

1. e4 {[%emt 0:02:29]} c5 {[%emt 0:01:10]} 2. Nc3 {[%emt 0:00:33]} Nc6 {[%emt 0:01:22]} 3. Bb5 {[%emt 0:00:12]} g6 {[%emt 0:01:13]} 4. Bxc6 {[%emt 0:00:05]} dxc6 {[%emt 0:00:56]} 5. d3 {[%emt 0:00:17]} Bg7 {[%emt 0:00:46]} 6. f4 {[%emt 0:00:23]} c4 {[%emt 0:04:14]} 7. Nf3 {[%emt 0:04:57]} cxd3 {[%emt 0:00:07]} 8. cxd3 {[%emt 0:00:12]} Bg4 {[%emt 0:06:19]} 9. O-O {[%emt 0:02:02]} Nf6 {[%emt 0:01:37]} 10. h3 {[%emt 0:04:09]} Qb6+ {[%emt 0:05:59]} 11. Kh2 {[%emt 0:00:35]} h5 {[%emt 0:01:08]} 12. g3 {[%emt 0:04:16]} Bxf3 {[%emt 0:06:44]} 13. Qxf3 {[%emt 0:05:32]} O-O-O {[%emt 0:08:52]} 14. Qe2 {[%emt 0:00:34]} Qa6 {[%emt 0:05:56]} 15. Rd1 {[%emt 0:03:09]} e5 {[%emt 0:00:05]} 16. Qc2 {[%emt 0:15:50]} Nd7 {[%emt 0:09:52]} 17. Be3 {[%emt 0:06:54]} h4 {[%emt 0:00:39]} 18. g4 {[%emt 0:04:20]} exf4 {[%emt 0:00:09]} 19. Bxf4 {[%emt 0:00:05]} Be5 {[%emt 0:00:35]} 20. Ne2 {[%emt 0:11:27]} Qb6 {[%emt 0:02:43]} 21. Kg2 {[%emt 0:04:01]} f5 {[%emt 0:16:00]} 22. g5 {[%emt 0:12:07]} fxe4 {[%emt 0:01:03]} 23. dxe4 {[%emt 0:02:34]} Bxf4 {[%emt 0:02:13]} 24. Nxf4 {[%emt 0:00:01]} Qe3 {[%emt 0:00:05]} 25. Qf2 {[%emt 0:03:47]} Qxe4+ {[%emt 0:00:23]} 26. Qf3 {[%emt 0:00:11]} Qxf3+ {[%emt 0:04:31]} 27. Kxf3 {[%emt 0:00:01]} Rhf8 {[%emt 0:00:06]} 28. Rf1 {[%emt 0:05:05]} Rf5 {[%emt 0:00:33]} 29. Kg2 {[%emt 0:05:18]} Rxg5+ {[%emt 0:00:57]} 30. Kh2 {[%emt 0:00:16]} Ne5 {[%emt 0:01:13]} 31. Rae1 {[%emt 0:01:26]} Rf5 {[%emt 0:01:23]} 32. Kg2 {[%emt 0:02:36]} g5 {[%emt 0:05:09]} 33. Ne2 {[%emt 0:01:01]} Rxf1 {[%emt 0:00:06]} 34. Kxf1 {[%emt 0:00:09]} Rf8+ {[%emt 0:02:14]} 35. Kg2 {[%emt 0:00:07]} Nd3 {[%emt 0:00:01]} 36. Rf1 {[%emt 0:00:36]} Rxf1 37. Kxf1 {[%emt 0:00:01]} Kd7 {[%emt 0:00:58]} 38. Nd4 {[%emt 0:00:31]} Nf4 {[%emt 0:00:22]} 39. Kf2 {[%emt 0:00:33]} Nxh3+ {[%emt 0:00:06]} 40. Kf3 {[%emt 0:00:01]} Nf4 {[%emt 0:00:14]} 41. Kg4 {[%emt 0:00:18]} Nd3 {[%emt 0:01:27]} 42. Nf3 {[%emt 0:00:15]} Nxb2 {[%emt 0:00:25]} 43. Nxg5 {[%emt 0:00:11]} Na4 {[%emt 0:02:18]} 44. Ne4 {[%emt 0:00:24]} Ke6 {[%emt 0:00:13]} 45. Kxh4 {[%emt 0:00:07]} Ke5 {[%emt 0:00:34]} 46. Nd2 {[%emt 0:00:08]} Kd4 {[%emt 0:00:39]} 47. Nb3+ {[%emt 0:00:05]} Kc3 {[%emt 0:02:10]} 48. Kg5 {[%emt 0:00:20]} c5 {[%emt 0:00:26]} 49. Kf4 {[%emt 0:00:15]} c4 {[%emt 0:00:04]} 50. Na5 {[%emt 0:00:08]} Nc5 {[%emt 0:00:54]} 51. a3 {[%emt 0:00:21]} Kd3 {[%emt 0:00:17]} 0-1

[Event "10th Iberoamericano-ch 2024"]
[Site "Linares"]
[Date "2024.09.27"]
[Round "5.14"]
[White "Vallejo Pons, Francisco"]
[Black "Lorente Serrano, Rosa Adela"]
[Result "1-0"]
[ECO "B54"]
[WhiteElo "2657"]
[BlackElo "2087"]
[Annotator "ChessBase"]
[PlyCount "53"]
[EventDate "2024.09.25"]
[EventType "swiss"]
[EventCountry "ESP"]
[SourceTitle "playchess.com"]
[Source "ChessBase"]
[SourceQuality "1"]
[TimeControl "5400+30"]

1. e4 {[%emt 0:00:07]} c5 {[%emt 0:00:07]} 2. Nf3 {[%emt 0:00:16]} d6 {[%emt 0:00:07]} 3. d4 {[%emt 0:00:12]} cxd4 {[%emt 0:00:08]} 4. Nxd4 {[%emt 0:03:16]} Nf6 {[%emt 0:00:11]} 5. f3 {[%emt 0:00:03]} e5 {[%emt 0:02:20]} 6. Nb3 {[%emt 0:01:16]} d5 {[%emt 0:06:24]} 7. Bg5 {[%emt 0:01:05]} Be6 {[%emt 0:02:05]} 8. exd5 {[%emt 0:00:53]} Qxd5 {[%emt 0:01:29]} 9. Nc3 {[%emt 0:08:29]} Bb4 {[%emt 0:10:39]} 10. Qxd5 {[%emt 0:04:24]} Nxd5 {[%emt 0:00:27]} 11. O-O-O {[%emt 0:01:17]} Bxc3 {[%emt 0:04:35]} 12. bxc3 {[%emt 0:09:24]} Nd7 {[%emt 0:00:41]} 13. Bc4 {[%emt 0:08:31]} Nc7 {[%emt 0:09:45]} 14. Na5 {[%emt 0:07:29]} f6 {[%emt 0:11:39]} 15. Be3 {[%emt 0:03:39]} b6 {[%emt 0:00:52]} 16. Bxe6 {[%emt 0:10:34]} Nxe6 {[%emt 0:00:09]} 17. Rd6 {[%emt 0:04:11]} Ndc5 {[%emt 0:09:37]} 18. Nc6 {[%emt 0:01:05]} Kf7 {[%emt 0:00:42]} 19. g3 {[%emt 0:02:48]} Rhc8 {[%emt 0:04:05]} 20. f4 {[%emt 0:07:58]} exf4 {[%emt 0:17:38]} 21. gxf4 {[%emt 0:00:35]} g6 {[%emt 0:02:16]} 22. Re1 {[%emt 0:05:17]} Nd8 {[%emt 0:05:16]} 23. Ne7 {[%emt 0:05:50]} Rc7 {[%emt 0:01:45]} 24. Nd5 {[%emt 0:00:37]} Rc6 {[%emt 0:00:37]} 25. Bxc5 {[%emt 0:00:46]} Rxc5 {[%emt 0:02:34]} 26. Rd7+ {[%emt 0:02:37]} Kf8 {[%emt 0:00:13]} 27. Nc7 {[%emt 0:01:20]} 1-0

[Event "10th Iberoamericano-ch 2024"]
[Site "Linares"]
[Date "2024.09.27"]
[Round "5.15"]
[White "Henriquez Villagra, Cristobal"]
[Black "Teran Alvarez, Ismael"]
[Result "1-0"]
[ECO "D02"]
[WhiteElo "2604"]
[BlackElo "2329"]
[Annotator "ChessBase"]
[PlyCount "91"]
[EventDate "2024.09.25"]
[EventType "swiss"]
[EventCountry "ESP"]
[SourceTitle "playchess.com"]
[Source "ChessBase"]
[SourceQuality "1"]
[TimeControl "5400+30"]

1. d4 {[%emt 0:00:02]} d5 {[%emt 0:03:15]} 2. Nf3 {[%emt 0:00:16]} Nf6 {[%emt 0:00:12]} 3. Bf4 {[%emt 0:00:20]} c5 {[%emt 0:01:04]} 4. e3 {[%emt 0:00:52]} Nc6 {[%emt 0:00:27]} 5. Be2 {[%emt 0:00:19]} Bg4 {[%emt 0:04:02]} 6. c3 {[%emt 0:06:57]} e6 {[%emt 0:06:51]} 7. Qb3 {[%emt 0:01:23]} Qc8 {[%emt 0:04:01]} 8. h3 {[%emt 0:04:23]} Bh5 {[%emt 0:06:54]} 9. a4 {[%emt 0:01:51]} c4 {[%emt 0:14:40]} 10. Qa2 {[%emt 0:02:05]} Ne4 {[%emt 0:01:07]} 11. a5 {[%emt 0:07:10]} Bd6 {[%emt 0:05:32]} 12. Nfd2 {[%emt 0:10:15]} Nxd2 {[%emt 0:15:29]} 13. Nxd2 {[%emt 0:07:05]} Bxf4 {[%emt 0:04:14]} 14. Bxh5 {[%emt 0:01:54]} Bc7 {[%emt 0:00:14]} 15. b4 {[%emt 0:04:27]} O-O {[%emt 0:00:41]} 16. e4 {[%emt 0:02:31]} Bf4 {[%emt 0:06:55]} 17. Bf3 {[%emt 0:00:57]} Qd7 {[%emt 0:03:11]} 18. O-O {[%emt 0:02:38]} Rad8 {[%emt 0:04:13]} 19. Rfe1 {[%emt 0:02:52]} Bxd2 {[%emt 0:01:31]} 20. Qxd2 {[%emt 0:00:04]} b5 {[%emt 0:02:29]} 21. axb6 {[%emt 0:06:24]} axb6 {[%emt 0:00:04]} 22. exd5 {[%emt 0:01:03]} exd5 {[%emt 0:00:02]} 23. Qg5 {[%emt 0:00:37]} f6 {[%emt 0:05:00]} 24. Qh5 {[%emt 0:02:25]} g6 {[%emt 0:00:05]} 25. Qh4 {[%emt 0:00:34]} Qd6 {[%emt 0:00:50]} 26. b5 {[%emt 0:01:52]} Na5 {[%emt 0:01:35]} 27. Re2 {[%emt 0:00:20]} Rde8 {[%emt 0:01:33]} 28. Rae1 {[%emt 0:00:36]} Rxe2 {[%emt 0:00:29]} 29. Rxe2 {[%emt 0:00:02]} Nb3 {[%emt 0:01:21]} 30. Qg3 {[%emt 0:02:02]} Rd8 {[%emt 0:02:00]} 31. Qg4 {[%emt 0:03:47]} Kf7 {[%emt 0:01:06]} 32. Qh4 {[%emt 0:00:16]} Kg7 {[%emt 0:00:50]} 33. Bg4 {[%emt 0:14:54]} Rf8 {[%emt 0:02:37]} 34. Re6 {[%emt 0:00:30]} Qc7 {[%emt 0:00:50]} 35. Qg3 {[%emt 0:08:31]} Qxg3 {[%emt 0:01:00]} 36. fxg3 {[%emt 0:00:02]} Ra8 {[%emt 0:00:23]} 37. Bf3 {[%emt 0:00:38]} Ra1+ {[%emt 0:00:56]} 38. Kf2 {[%emt 0:00:08]} Rc1 {[%emt 0:00:47]} 39. Rxb6 {[%emt 0:01:55]} Rxc3 {[%emt 0:00:23]} 40. Bxd5 {[%emt 0:00:41]} Nxd4 {[%emt 0:00:49]} 41. Rb7+ {[%emt 0:00:04]} Kh6 {[%emt 0:00:25]} 42. g4 {[%emt 0:00:43]} Kg5 {[%emt 0:00:32]} 43. b6 {[%emt 0:00:39]} Kf4 {[%emt 0:00:33]} 44. Re7 {[%emt 0:03:38]} Rc2+ {[%emt 0:00:21]} 45. Kf1 {[%emt 0:00:02]} Rb2 {[%emt 0:00:38]} 46. Re4+ {[%emt 0:00:12]} 1-0

[Event "10th Iberoamericano-ch 2024"]
[Site "Linares"]
[Date "2024.09.27"]
[Round "5.16"]
[White "Domingo Nunez, Alejandro"]
[Black "Zambrana, Osvaldo"]
[Result "0-1"]
[ECO "B22"]
[WhiteElo "2328"]
[BlackElo "2405"]
[Annotator "ChessBase"]
[PlyCount "80"]
[EventDate "2024.09.25"]
[EventType "swiss"]
[EventCountry "ESP"]
[SourceTitle "playchess.com"]
[Source "ChessBase"]
[SourceQuality "1"]
[TimeControl "5400+30"]

1. e4 {[%emt 0:01:59]} c5 {[%emt 0:00:05]} 2. d4 {[%emt 0:00:07]} cxd4 {[%emt 0:00:25]} 3. c3 {[%emt 0:00:03]} Nf6 {[%emt 0:03:27]} 4. e5 {[%emt 0:00:02]} Nd5 {[%emt 0:00:08]} 5. Nf3 {[%emt 0:00:02]} Nc6 {[%emt 0:00:17]} 6. Bc4 {[%emt 0:00:03]} Nb6 {[%emt 0:00:24]} 7. Bb3 {[%emt 0:00:03]} e6 {[%emt 0:00:46]} 8. cxd4 {[%emt 0:00:09]} d6 {[%emt 0:00:15]} 9. Qe2 {[%emt 0:00:03]} Be7 {[%emt 0:02:00]} 10. O-O {[%emt 0:00:16]} O-O {[%emt 0:00:14]} 11. Nc3 {[%emt 0:00:32]} Nb4 {[%emt 0:22:20]} 12. a3 {[%emt 0:20:31]} N4d5 {[%emt 0:01:08]} 13. Bc2 {[%emt 0:03:08]} Nxc3 {[%emt 0:05:28]} 14. bxc3 {[%emt 0:05:46]} g6 {[%emt 0:00:58]} 15. Bh6 {[%emt 0:00:40]} Re8 {[%emt 0:00:06]} 16. Qe4 {[%emt 0:00:20]} Bd7 {[%emt 0:01:36]} 17. exd6 {[%emt 0:20:03]} Bxd6 {[%emt 0:00:12]} 18. Ng5 {[%emt 0:00:26]} Bc6 {[%emt 0:04:03]} 19. Qh4 {[%emt 0:01:57]} Nd5 {[%emt 0:12:34]} 20. Rae1 {[%emt 0:19:52]} b5 {[%emt 0:09:34]} 21. f4 {[%emt 0:09:29]} Rc8 {[%emt 0:05:13]} 22. Bb3 {[%emt 0:12:44]} Be7 {[%emt 0:12:34]} 23. Qh3 {[%emt 0:01:48]} Bf6 {[%emt 0:06:15]} 24. Ne4 {[%emt 0:01:00]} Bg7 {[%emt 0:06:45]} 25. Bg5 {[%emt 0:00:26]} Nf6 {[%emt 0:01:04]} 26. Nc5 {[%emt 0:01:23]} Bd5 {[%emt 0:00:07]} 27. Bc2 {[%emt 0:00:31]} Qd6 {[%emt 0:00:30]} 28. Re3 {[%emt 0:00:34]} Nd7 {[%emt 0:00:33]} 29. Nxd7 {[%emt 0:00:23]} Qxd7 {[%emt 0:00:02]} 30. Rd1 {[%emt 0:00:20]} Rc7 {[%emt 0:01:53]} 31. Qh4 {[%emt 0:00:38]} Rec8 {[%emt 0:00:02]} 32. Rh3 {[%emt 0:00:17]} h5 {[%emt 0:00:01]} 33. Qe1 {[%emt 0:00:48]} Qc6 {[%emt 0:01:33]} 34. Rd2 {[%emt 0:00:35]} Qb6 {[%emt 0:00:15]} 35. Rdd3 {[%emt 0:00:30]} a5 {[%emt 0:01:53]} 36. Kh1 {[%emt 0:00:18]} b4 {[%emt 0:00:08]} 37. axb4 {[%emt 0:00:25]} axb4 {[%emt 0:00:02]} 38. Qb1 {[%emt 0:00:43]} Qb7 {[%emt 0:00:02]} 39. Rd2 {[%emt 0:00:34]} bxc3 {[%emt 0:00:45]} 40. Qxb7 {[%emt 0:00:05]} cxd2 {[%emt 0:00:30]} 0-1